bitfinex-derivatives/quotes_SOLF0:USTF0_20250903
["timestamp","ask_amount","ask_price","bid_price","bid_amount"]
[1756872159274,57.73837096,212.14,209.93,9.49048856]
[1756872159275,5.29316299,210.03,209.93,9.49048856]
[1756872159472,5.29316299,210.03,209.85,66.7078]
[1756872159473,7.03365155,210.04,209.97,7.75]
[1756872159776,1.74048856,210.04,209.97,7.75]
[1756872159967,7.55,210.05,209.98,1.74048856]
[1756872160576,7.55,210.05,209.99,7.78661683]
[1756872163776,5.77316299,210.08,210.02,1.74048856]
[1756872164082,0.48,210.08,210.02,1.74048856]
[1756872164281,0.48,210.08,210.03,7.28]
[1756872164681,0.48,210.08,210.02,1.74048856]
[1756872164882,0.48,210.08,210.04,7.28]
[1756872165983,0.48,210.08,210.03,0.03099654]
[1756872166182,0.48,210.08,210.06,1.74048856]
[1756872166483,0.48,210.08,210.07,7.28]
[1756872169685,0.48,210.08,210.04,1.74048856]
[1756872169986,8.29,210.08,210.04,7.28]
[1756872171790,8.29,210.08,210.03,1.7714851]
[1756872171988,8.29,210.08,210.04,7.28]
[1756872172390,8.29,210.08,210.03,1.7714851]
[1756872172586,0.48,210.08,210.04,7.28]
[1756872172790,0.48,210.08,210.05,1.74048856]
[1756872172994,0.48,210.08,210.06,7.28]
[1756872173789,0.48,210.08,210.03,1.7714851]
[1756872173993,0.48,210.08,210.06,7.28]
[1756872174998,0.48,210.08,210.05,1.74048856]
[1756872175292,0.48,210.08,210.05,9.02048856]
[1756872175494,8.29,210.08,210.05,9.02048856]
[1756872175695,8.29,210.08,210.03,1.7714851]
[1756872175894,8.29,210.08,210.04,7.28]
[1756872176396,8.29,210.08,210.03,1.7714851]
[1756872176590,8.29,210.08,210.04,7.28]
[1756872177392,8.29,210.08,210.03,1.7714851]
[1756872177587,8.29,210.08,210.04,7.28]
[1756872178795,0.48,210.08,210.04,7.28]
[1756872178996,9.55048856,210.07,210.03,0.03099654]
[1756872179196,7.81,210.06,210.03,0.03099654]
[1756872180105,7.81,210.09,210.03,0.03099654]
[1756872182896,7.81,210.09,210.03,7.31099654]
[1756872183095,7.81,210.12,210.03,7.31099654]
[1756872184601,7.81,210.12,210.03,10.03263584]
[1756872184800,7.81,210.12,210.04,7.28]
[1756872193104,5.29316299,210.11,210.03,0.03099654]
[1756872193402,7.83,210.1,210.03,0.03099654]
[1756872197106,13.12316299,210.1,210.03,0.03099654]
[1756872197507,7.83,210.1,210.03,7.38099654]
[1756872200105,7.83,210.1,210.03,10.10263584]
[1756872200303,7.83,210.1,210.04,7.35]
[1756872204719,13.12316299,210.1,210.04,7.35]
[1756872204924,5.29316299,210.09,210.03,0.03099654]
[1756872205425,2.7216393,210.15,210.03,0.03099654]
[1756872205426,5.29316299,210.08,210.03,0.03099654]
[1756872205727,7.83,210.07,210.03,0.03099654]
[1756872206328,7.83,210.07,210.03,7.38099654]
[1756872208233,13.12316299,210.07,210.03,7.38099654]
[1756872208727,5.29316299,210.07,210.04,7.35]
[1756872208933,5.29316299,210.1,210.04,7.35]
[1756872209532,5.29316299,210.1,210.04,10.0716393]
[1756872211630,5.29316299,210.09,210.05,7.35]
[1756872211834,5.29316299,210.09,210.04,2.7216393]
[1756872212735,5.29316299,210.09,210.05,7.35]
[1756872212933,5.29316299,210.09,210.04,2.7216393]
[1756872213134,5.29316299,210.09,210.05,7.35]
[1756872213433,5.29316299,210.09,210.04,2.7216393]
[1756872213634,5.29316299,210.09,210.05,7.35]
[1756872213835,13.12316299,210.09,210.05,7.35]
[1756872214034,7.83,210.08,210.05,7.35]
[1756872220636,7.83,210.08,210.04,2.7216393]
[1756872220836,7.83,210.08,210.05,7.35]
[1756872221237,7.83,210.08,210.04,2.7216393]
[1756872221536,5.29316299,210.12,210.08,7.48]
[1756872221736,12.66316299,210.13,210.07,2.7216393]
[1756872222034,5.29316299,210.15,210.08,7.48]
[1756872222238,5.29316299,210.17,210.11,7.48]
[1756872222738,5.29316299,210.17,210.11,10.2016393]
[1756872222931,12.66316299,210.17,210.12,0.03079976]
[1756872223129,7.37,210.17,210.13,7.48]
[1756872223734,7.37,210.17,210.14,4.34626484]
[1756872223933,7.37,210.17,210.13,7.48]
[1756872224139,7.37,210.17,210.14,11.82626484]
[1756872224433,7.37,210.17,210.12,0.03079976]
[1756872224639,5.29316299,210.19,210.13,11.82423376]
[1756872224938,12.66316299,210.19,210.15,7.48]
[1756872225638,5.29316299,210.22,210.16,4.34222835]
[1756872225833,5.29316299,210.22,210.15,7.48]
[1756872226038,5.29316299,210.22,210.16,4.34222835]
[1756872226231,12.66316299,210.23,210.15,7.48]
[1756872226430,12.66316299,210.23,210.16,4.33970633]
[1756872226629,12.66316299,210.23,210.17,0.03170254]
[1756872226928,12.66316299,210.23,210.18,7.48]
[1756872227135,5.29316299,210.24,210.18,7.48]
[1756872227344,40.79316299,210.28,210.21,7.48]
[1756872228036,12.66316299,210.29,210.22,0.03498011]
[1756872228332,7.37,210.29,210.22,0.03498011]
[1756872231337,7.37,210.29,210.23,7.48]
[1756872232538,7.37,210.29,210.22,0.03498011]
[1756872233345,5.29316299,210.28,210.22,0.03498011]
[1756872233543,7.37,210.28,210.22,0.03498011]
[1756872234741,12.66316299,210.28,210.22,0.03498011]
[1756872235134,7.37,210.28,210.22,0.03498011]
[1756872235544,7.37,210.26,210.22,0.03498011]
[1756872235745,12.66316299,210.26,210.22,0.03498011]
[1756872237145,7.37,210.26,210.22,0.03498011]
[1756872237343,12.66316299,210.26,210.22,0.03498011]
[1756872237536,7.37,210.26,210.22,0.03498011]
[1756872239144,12.66316299,210.26,210.22,0.03498011]
[1756872239642,9.10924,210.23,210.22,0.03498011]
[1756872242551,7.37,210.23,210.22,0.03498011]
[1756872242739,1.73924,210.27,210.22,0.03498011]
[1756872242938,7.37,210.26,210.22,9.25422011]
[1756872243140,7.37,210.3,210.24,1.73924]
[1756872247752,9.10924,210.3,210.24,1.73924]
[1756872248547,9.10924,210.3,210.22,0.03498011]
[1756872248754,9.10924,210.3,210.22,1.77422011]
[1756872250650,1.73924,210.28,210.22,1.77422011]
[1756872250850,1.73924,210.28,210.22,0.03498011]
[1756872251054,7.37,210.27,210.22,0.03498011]
[1756872251352,1.73924,210.28,210.22,0.03498011]
[1756872251549,7.36,210.27,210.22,0.03498011]
[1756872251755,1.73924,210.28,210.22,0.03498011]
[1756872251953,7.36,210.28,210.22,0.03498011]
[1756872252259,9.09924,210.28,210.22,0.03498011]
[1756872255157,14.39240299,210.28,210.22,0.03498011]
[1756872259259,12.65316299,210.28,210.22,7.82498011]
[1756872259457,12.65316299,210.28,210.24,7.79]
[1756872259458,7.36,210.28,210.24,7.79]
[1756872260262,12.65316299,210.28,210.24,7.79]
[1756872260461,7.36,210.28,210.24,7.79]
[1756872260957,7.36,210.28,210.27,1.73924]
[1756872261154,12.65316299,210.29,210.26,7.79]
[1756872261354,7.36,210.28,210.25,1.73924]
[1756872261554,5.29316299,210.29,210.25,1.73924]
[1756872261760,12.65316299,210.28,210.25,1.73924]
[1756872261960,12.65316299,210.28,210.25,9.52924]
[1756872262161,5.29316299,210.27,210.25,9.52924]
[1756872264253,5.29316299,210.26,210.25,9.52924]
[1756872264759,9.58695692,210.28,210.22,0.03498011]
[1756872264963,12.65022193,210.25,210.22,0.03498011]
[1756872265158,9.58695692,210.28,210.22,0.03498011]
[1756872265159,12.65022193,210.24,210.22,0.03498011]
[1756872266263,1.73924,210.28,210.22,0.03498011]
[1756872266264,12.65022193,210.23,210.22,0.03498011]
[1756872266459,7.36,210.23,210.22,0.03498011]
[1756872267053,15.20771692,210.23,210.22,0.03498011]
[1756872267260,7.36,210.23,210.22,0.03498011]
[1756872271467,15.20771692,210.23,210.22,0.03498011]
[1756872271662,7.36,210.23,210.22,0.03498011]
[1756872272667,12.66729857,210.23,210.22,0.03498011]
[1756872273667,5.30729857,210.23,210.22,0.03498011]
[1756872274070,5.30729857,210.24,210.22,0.03498011]
[1756872274270,12.66729857,210.24,210.22,0.03498011]
[1756872274671,7.36,210.23,210.22,0.03498011]
[1756872275473,12.66729857,210.23,210.22,0.03498011]
[1756872275772,12.66889388,210.23,210.22,0.03498011]
[1756872276777,7.36,210.23,210.22,0.03498011]
[1756872276970,5.30889388,210.24,210.22,0.03498011]
[1756872277372,12.66889388,210.27,210.23,13.89791787]
[1756872277572,12.66889388,210.27,210.24,12.15867787]
[1756872277778,12.66889388,210.27,210.25,1.73924]
[1756872279077,5.30889388,210.27,210.25,9.52924]
[1756872279475,12.66889388,210.28,210.25,9.52924]
[1756872279980,7.36,210.27,210.23,1.73924]
[1756872280277,5.30889388,210.28,210.24,4.36714598]
[1756872280472,5.30889388,210.28,210.23,1.73924]
[1756872280679,5.30889388,210.28,210.24,4.36643917]
[1756872280879,7.36,210.27,210.23,1.73924]
[1756872281069,5.30889388,210.28,210.24,4.36643762]
[1756872281275,7.89,210.27,210.23,1.73924]
[1756872281472,7.89,210.27,210.24,4.3660634]
[1756872281677,7.89,210.27,210.23,1.73924]
[1756872281678,7.89,210.26,210.23,1.73924]
[1756872281879,5.30889388,210.26,210.22,0.03498011]
[1756872282077,5.30889388,210.26,210.23,4.36621568]
[1756872282278,7.89,210.25,210.22,0.03498011]
[1756872282478,7.89,210.25,210.23,4.36623705]
[1756872282780,7.89,210.25,210.22,0.03498011]
[1756872282979,7.89,210.25,210.23,4.36623395]
[1756872283179,7.89,210.25,210.24,4.36623395]
[1756872287180,9.62924,210.31,210.24,4.36623395]
[1756872287479,9.62924,210.31,210.25,4.36623395]
[1756872287680,1.73924,210.31,210.26,4.36623395]
[1756872287880,7.89,210.3,210.27,4.36623395]
[1756872288080,7.89,210.3,210.28,4.36623395]
[1756872288278,1.73924,210.31,210.26,0.03354577]
[1756872288478,7.89,210.3,210.27,4.36698041]
[1756872288679,7.89,210.3,210.28,4.36698041]
[1756872288977,1.73924,210.31,210.26,0.03354577]
[1756872289282,7.89,210.3,210.27,4.36689726]
[1756872289482,1.73924,210.31,210.28,4.36660022]
[1756872289685,7.89,210.3,210.26,0.03354577]
[1756872289879,1.73924,210.31,210.27,4.36678882]
[1756872290081,118.79924,210.31,210.26,0.03354577]
[1756872290283,118.79924,210.31,210.27,4.36656662]
[1756872290474,118.79924,210.31,210.26,0.03354577]
[1756872290678,118.79924,210.31,210.27,4.36656662]
[1756872290874,118.79924,210.31,210.26,0.03354577]
[1756872291079,7.89,210.3,210.27,4.36656661]
[1756872291378,7.89,210.3,210.26,0.03354577]
[1756872291581,7.89,210.3,210.27,4.36641423]
[1756872291779,9.62924,210.3,210.26,0.03354577]
[1756872291980,9.62924,210.3,210.27,4.36641423]
[1756872292180,9.62924,210.3,210.26,0.03354577]
[1756872292478,9.62924,210.3,210.27,4.36630108]
[1756872292681,9.62924,210.3,210.26,0.03354577]
[1756872292979,1.73924,210.3,210.27,4.36630108]
[1756872293181,7.89,210.27,210.26,0.03354577]
[1756872295481,13.19889388,210.28,210.26,0.03354577]
[1756872295675,5.30889388,210.3,210.27,1.73924]
[1756872295878,5.30889388,210.31,210.28,7.34]
[1756872296084,5.30889388,210.31,210.28,9.07924]
[1756872296779,5.30889388,210.31,210.27,0.03044131]
[1756872296780,5.30889388,210.32,210.31,7.34]
[1756872297081,5.30889388,210.33,210.3,1.73924]
[1756872297382,5.30889388,210.36,210.32,1.73924]
[1756872297583,5.30889388,210.38,210.35,9.07924]
[1756872298285,13.19889388,210.38,210.35,9.07924]
[1756872298887,7.89,210.38,210.35,9.07924]
[1756872299185,13.19889388,210.38,210.35,9.07924]
[1756872299386,7.89,210.38,210.35,9.07924]
[1756872299583,7.89,210.38,210.35,7.34]
[1756872301279,122.34889388,210.39,210.35,7.34]
[1756872301680,122.34889388,210.39,210.34,0.03076789]
[1756872301879,5.30889388,210.4,210.35,10.05296095]
[1756872302083,5.30889388,210.41,210.35,2.71296095]
[1756872302484,5.30889388,210.43,210.36,7.34]
[1756872302785,5.30889388,210.43,210.36,7.37247371]
[1756872303283,130.19889388,210.44,210.36,7.37247371]
[1756872303983,5.30889388,210.45,210.39,7.34]
[1756872304187,5.30889388,210.47,210.39,7.34]
[1756872304390,13.19889388,210.48,210.41,2.71296095]
[1756872304585,13.19889388,210.48,210.41,2.74369303]
[1756872305186,7.89,210.48,210.41,2.74369303]
[1756872305692,7.89,210.48,210.42,7.34]
[1756872308590,7.89,210.48,210.41,0.03073208]
[1756872309184,10.60296095,210.48,210.41,0.03073208]
[1756872309491,10.60296095,210.45,210.41,0.03073208]
[1756872309693,7.89,210.43,210.41,0.03073208]
[1756872310096,7.89,210.42,210.41,0.03073208]
[1756872310297,124.83,210.43,210.41,0.03073208]
[1756872310496,116.94,210.43,210.41,0.03073208]
[1756872310692,7.89,210.42,210.41,0.03073208]
[1756872312791,124.76,210.43,210.41,0.03073208]
[1756872313096,7.82,210.42,210.41,0.03073208]
[1756872313692,0.82744846,210.51,210.41,0.03073208]
[1756872313693,124.74,210.47,210.41,0.03073208]
[1756872316390,116.92,210.47,210.42,7.61]
[1756872316598,116.92,210.47,210.42,2.71296095]
[1756872316993,116.92,210.47,210.43,7.61]
[1756872317295,7.82,210.5,210.43,7.61]
[1756872319400,7.82,210.5,210.41,0.03073208]
[1756872319401,116.92,210.51,210.45,2.71296095]
[1756872319707,116.92,210.51,210.45,7.61]
[1756872320001,116.92,210.51,210.46,0.03349077]
[1756872320402,124.74,210.51,210.46,7.64349077]
[1756872320599,116.92,210.51,210.46,7.64349077]
[1756872320802,116.92,210.51,210.46,0.03349077]
[1756872321693,7.82,210.5,210.46,0.03349077]
[1756872322599,116.92,210.51,210.46,0.03349077]
[1756872322898,7.82,210.5,210.46,0.03349077]
[1756872323402,7.82,210.5,210.46,7.64349077]
[1756872324299,7.82,210.5,210.46,0.03349077]
[1756872324502,116.92,210.51,210.46,0.03349077]
[1756872325398,7.82,210.5,210.46,0.03349077]
[1756872325599,116.92,210.51,210.46,0.03349077]
[1756872326105,7.82,210.5,210.46,0.03349077]
[1756872326602,116.92,210.51,210.46,0.03349077]
[1756872326792,7.82,210.5,210.46,0.03349077]
[1756872326995,116.92,210.51,210.46,0.03349077]
[1756872327500,7.82,210.5,210.46,0.03349077]
[1756872328198,116.92,210.51,210.46,0.03349077]
[1756872328399,7.82,210.5,210.46,0.03349077]
[1756872328702,116.92,210.51,210.46,0.03349077]
[1756872328904,7.82,210.5,210.46,0.03349077]
[1756872329301,116.92,210.51,210.46,0.03349077]
[1756872329904,7.82,210.5,210.46,0.03349077]
[1756872330202,116.92,210.51,210.46,0.03349077]
[1756872330406,7.82,210.5,210.46,0.03349077]
[1756872333409,7.82,210.48,210.37,7.61]
[1756872333605,7.82,210.45,210.32,10.32296095]
[1756872333911,7.82,210.42,210.32,7.61]
[1756872334209,23.52,210.42,210.32,7.61]
[1756872334607,0.03252608,210.39,210.32,7.61]
[1756872334807,7.82,210.38,210.32,7.61]
[1756872337208,7.82,210.38,210.29,7.61]
[1756872337806,0.03586617,210.36,210.29,7.61]
[1756872338003,0.03586617,210.36,210.23,293.08]
[1756872338004,7.85586617,210.36,210.26,7.61]
[1756872338209,7.85586617,210.36,210.27,4.3333984]
[1756872338409,7.82,210.36,210.26,7.61]
[1756872338611,0.03307211,210.34,210.27,4.33579843]
[1756872338805,0.03307211,210.34,210.27,2.71296095]
[1756872339010,0.03307211,210.34,210.28,11.94575676]
[1756872339207,0.03307211,210.34,210.29,4.33787711]
[1756872339409,0.03307211,210.34,210.28,7.61]
[1756872339608,0.03307211,210.34,210.3,7.61]
[1756872339809,0.03307211,210.34,210.28,7.61]
[1756872340008,0.03307211,210.34,210.3,7.61]
[1756872340308,0.03307211,210.34,210.28,7.61]
[1756872340509,0.03307211,210.34,210.29,4.34075695]
[1756872340813,0.03307211,210.34,210.28,7.61]
[1756872341013,0.03307211,210.34,210.3,7.61]
[1756872341214,0.03307211,210.34,210.28,7.61]
[1756872341414,0.03307211,210.34,210.3,7.78]
[1756872341817,7.72307211,210.34,210.25,2.71296095]
[1756872342113,7.72307211,210.34,210.26,4.34258366]
[1756872342314,7.72307211,210.34,210.27,4.34258366]
[1756872342617,7.72307211,210.34,210.24,7.78]
[1756872342818,7.72307211,210.34,210.25,4.34324627]
[1756872343118,7.72307211,210.34,210.24,7.78]
[1756872343313,7.72307211,210.34,210.25,4.34366798]
[1756872343512,7.72307211,210.34,210.26,4.34366798]
[1756872343712,7.72307211,210.34,210.24,7.78]
[1756872343913,7.72307211,210.34,210.25,4.34244078]
[1756872344106,7.72307211,210.34,210.26,4.34244078]
[1756872344308,7.72307211,210.34,210.24,7.78]
[1756872344517,7.72307211,210.34,210.25,4.34155988]
[1756872344722,7.72307211,210.34,210.26,4.34155988]
[1756872345016,7.72307211,210.34,210.24,7.78]
[1756872345314,7.72307211,210.34,210.25,4.34155988]
[1756872345516,7.72307211,210.34,210.24,7.78]
[1756872345712,7.72307211,210.34,210.25,4.34064581]
[1756872345913,7.72307211,210.34,210.24,7.78]
[1756872346113,7.72307211,210.34,210.25,4.34064581]
[1756872346317,7.72307211,210.34,210.24,7.78]
[1756872346518,7.72307211,210.34,210.25,4.33976425]
[1756872346719,7.72307211,210.34,210.24,7.78]
[1756872347018,7.72307211,210.34,210.25,4.33976533]
[1756872347217,7.72307211,210.34,210.24,7.78]
[1756872347419,7.72307211,210.34,210.25,4.33863825]
[1756872347621,7.72307211,210.34,210.24,7.78]
[1756872347822,7.72307211,210.34,210.25,4.33863879]
[1756872348018,7.72307211,210.34,210.24,7.78]
[1756872349821,2.71296095,210.33,210.24,7.78]
[1756872350021,7.69,210.32,210.22,2.71296095]
[1756872350720,7.72540256,210.29,210.21,7.78]
[1756872360926,7.69,210.27,210.23,0.03230586]
[1756872361320,7.69,210.27,210.17,7.78]
[1756872361518,1.73909543,210.24,210.17,9.51909543]
[1756872361720,9.42909543,210.24,210.17,9.51909543]
[1756872362130,0.03235583,210.23,210.17,9.51909543]
[1756872364830,0.03235583,210.23,210.2,7.78]
[1756872365531,0.03235583,210.23,210.19,1.73909543]
[1756872365732,0.03235583,210.23,210.2,7.78]
[1756872366129,7.72235583,210.23,210.12,7.78]
[1756872366325,7.72235583,210.23,210.17,1.73909543]
[1756872368731,0.03235583,210.23,210.17,1.73909543]
[1756872369735,0.03235583,210.23,210.19,1.73909543]
[1756872369933,0.03235583,210.23,210.2,7.78]
[1756872370632,0.03235583,210.23,210.19,1.73909543]
[1756872371235,7.69,210.22,210.19,1.73909543]
[1756872371434,7.69,210.22,210.19,8.94909543]
[1756872372335,0.03235583,210.23,210.19,1.73909543]
[1756872372733,7.43235583,210.23,210.2,7.21]
[1756872372935,7.43235583,210.23,210.11,328.92]
[1756872372936,9.13909543,210.21,210.15,7.21]
[1756872373237,7.4,210.21,210.15,7.21]
[1756872373439,7.4,210.21,210.11,292.94]
[1756872373440,7.4,210.21,210.17,7.21]
[1756872373636,1.77145126,210.23,210.17,7.21]
[1756872373833,1.73909543,210.23,210.17,7.21]
[1756872374033,0.03550016,210.22,210.17,7.21]
[1756872374238,7.4,210.21,210.17,7.21]
[1756872377646,0.03550016,210.22,210.17,7.21]
[1756872377841,9.13909543,210.21,210.14,7.21]
[1756872378050,9.13909543,210.21,210.14,8.94909543]
[1756872380546,1.73909543,210.17,210.1,8.94909543]
[1756872380745,1.73909543,210.17,210.09,8.94909543]
[1756872380746,7.4,210.16,210.09,8.94909543]
[1756872380943,7.4,210.16,210.1,4.34744541]
[1756872381141,0.03543724,210.15,210.09,8.94909543]
[1756872381341,7.43543724,210.15,210.11,7.21]
[1756872381842,7.43543724,210.15,210.1,7.21]
[1756872382038,0.03543724,210.15,210.1,7.21]
[1756872382241,0.03543724,210.15,210.11,1.73909543]
[1756872382538,0.03543724,210.15,210.04,116.9]
[1756872382539,0.03543724,210.15,210.14,7.21]
[1756872382740,0.03543724,210.15,210.14,11.55710265]
[1756872383643,0.03543724,210.15,210.14,13.29619808]
[1756872392148,0.03543724,210.15,210.14,4.34710265]
[1756872392454,7.43543724,210.15,210.09,7.21]
[1756872392850,0.03543724,210.15,210.1,1.73909543]
[1756872393055,0.03543724,210.15,210.11,7.21]
[1756872393449,7.43543724,210.15,210.1,8.94909543]
[1756872393651,7.4,210.14,210.1,7.21]
[1756872394555,0.03543724,210.15,210.1,7.21]
[1756872394756,7.4,210.14,210.1,7.21]
[1756872396160,7.4,210.14,210.08,1.73909543]
[1756872396361,7.43543724,210.15,210.09,4.34004982]
[1756872396661,7.4,210.14,210.1,11.55004982]
[1756872396863,7.4,210.14,210.1,7.21]
[1756872398359,0.03543724,210.15,210.1,7.21]
[1756872399059,7.4,210.14,210.1,7.21]
[1756872399557,7.4,210.14,210.09,7.21]
[1756872399758,0.03543724,210.15,210.1,6.07910259]
[1756872399964,7.43543724,210.15,210.11,11.54986044]
[1756872400159,7.43543724,210.15,210.11,7.21]
[1756872400565,0.03543724,210.15,210.11,7.21]
[1756872401264,0.03543724,210.15,210.1,1.73909543]
[1756872401466,0.03543724,210.15,210.12,7.24]
[1756872401866,0.03543724,210.15,210.1,1.73909543]
[1756872402067,0.03543724,210.15,210.12,7.24]
[1756872402261,0.03543724,210.15,210.11,7.24]
[1756872402666,0.03543724,210.15,210.1,1.73909543]
[1756872402864,0.03543724,210.15,210.12,7.24]
[1756872403065,0.03543724,210.15,210.1,1.73909543]
[1756872403265,0.03543724,210.15,210.12,7.24]
[1756872403465,0.03543724,210.15,210.11,7.24]
[1756872403967,0.03543724,210.15,210.1,1.73909543]
[1756872404164,0.03543724,210.15,210.12,7.24]
[1756872404359,0.03543724,210.15,210.1,1.73909543]
[1756872404666,0.03543724,210.15,210.11,4.34329425]
[1756872404867,0.03543724,210.15,210.13,7.24]
[1756872407066,0.03543724,210.15,210.09,8.97909543]
[1756872407267,7.30543724,210.15,210.11,7.24]
[1756872407465,7.30543724,210.15,210.09,1.73909543]
[1756872407667,7.30543724,210.15,210.11,7.24]
[1756872408363,7.30543724,210.15,210.1,7.24]
[1756872408567,7.30543724,210.15,210.12,7.24]
[1756872408765,7.30543724,210.15,210.11,7.24]
[1756872408967,7.30543724,210.15,210.1,7.24]
[1756872409170,7.27,210.14,210.11,4.34345107]
[1756872409364,7.27,210.14,210.08,8.97909543]
[1756872409565,1.77453267,210.15,210.1,7.24]
[1756872409761,7.27,210.14,210.08,1.73909543]
[1756872409961,7.27,210.14,210.09,4.34372161]
[1756872410171,7.27,210.14,210.1,4.34372161]
[1756872410472,9.04453267,210.15,210.08,8.97909543]
[1756872410672,9.04453267,210.15,210.09,4.34392538]
[1756872410874,1.77453267,210.15,210.1,11.58392538]
[1756872411074,1.77453267,210.15,210.1,7.24]
[1756872411275,7.27,210.14,210.08,1.73909543]
[1756872411470,7.27,210.14,210.1,7.24]
[1756872411674,0.03543724,210.15,210.11,4.34421549]
[1756872411976,0.03543724,210.15,210.12,7.24]
[1756872412179,0.03543724,210.15,210.1,1.73909543]
[1756872412367,0.03543724,210.15,210.12,7.24]
[1756872412572,0.03543724,210.15,210.11,7.24]
[1756872412767,0.03543724,210.15,210.13,7.24]
[1756872413476,7.30543724,210.15,210.11,7.24]
[1756872413672,7.30543724,210.15,210.12,11.58489633]
[1756872413979,7.27,210.14,210.12,7.24]
[1756872414673,7.27,210.14,210.1,7.24]
[1756872415966,7.27,210.14,210.09,1.73909543]
[1756872416169,7.27,210.14,210.11,7.24]
[1756872419075,7.27,210.14,210.09,1.73909543]
[1756872419272,7.27,210.14,210.11,7.24]
[1756872419679,0.03543724,210.15,210.12,4.3480196]
[1756872419881,0.03543724,210.15,210.1,7.24]
[1756872420083,0.03543724,210.15,210.12,7.24]
[1756872420378,0.03543724,210.15,210.1,7.24]
[1756872420579,0.03543724,210.15,210.12,7.24]
[1756872421477,0.03543724,210.15,210.08,7.24]
[1756872421777,7.27,210.16,210.09,4.3490705]
[1756872421979,7.27,210.16,210.1,4.3490705]
[1756872422174,5.30889388,210.17,210.11,4.3490705]
[1756872422382,7.27,210.14,210.12,4.3497544]
[1756872422582,7.27,210.14,210.08,7.24]
[1756872422781,7.27,210.14,210.09,4.3497544]
[1756872422984,7.27,210.14,210.11,7.24]
[1756872423182,7.27,210.14,210.12,4.3497544]
[1756872423384,7.27,210.14,210.11,7.24]
[1756872423683,7.27,210.14,210.12,4.35001827]
[1756872423884,7.27,210.14,210.11,7.24]
[1756872424184,7.27,210.14,210.12,4.35001827]
[1756872424383,0.03375787,210.15,210.07,7.24]
[1756872424584,0.03375787,210.15,210.09,7.24]
[1756872424775,7.30375787,210.15,210.11,7.24]
[1756872424979,7.30375787,210.15,210.12,4.35031943]
[1756872425179,7.30375787,210.15,210.11,7.24]
[1756872425478,7.30375787,210.15,210.12,4.35040549]
[1756872425682,7.30375787,210.15,210.12,7.24]
[1756872427784,7.27,210.14,210.07,7.24]
[1756872427984,7.27,210.14,210.08,4.35064117]
[1756872428184,7.27,210.14,210.1,7.24]
[1756872428384,7.27,210.14,210.11,11.59064117]
[1756872428583,7.27,210.14,210.12,4.35064117]
[1756872428884,7.27,210.14,210.11,7.24]
[1756872429087,7.30375787,210.15,210.12,11.59159866]
[1756872429286,7.30375787,210.15,210.12,7.24]
[1756872429480,7.27,210.14,210.12,7.24]
[1756872430380,7.27,210.14,210.07,7.24]
[1756872430583,5.30889388,210.13,210.08,4.3533299]
[1756872430880,7.27,210.12,210.09,4.3533299]
[1756872431081,5.30889388,210.11,210.04,7.24]
[1756872431285,7.45,210.1,210.05,4.35402738]
[1756872431485,7.45,210.1,210.06,12.09402738]
[1756872431788,7.48356019,210.1,210.07,4.35402738]
[1756872431986,7.48356019,210.1,210.06,7.74]
[1756872432187,0.03356019,210.1,210.07,4.3531133]
[1756872432487,7.48356019,210.1,210.06,7.74]
[1756872432687,0.03356019,210.1,210.08,7.74]
[1756872432888,0.03356019,210.1,210.09,12.09255553]
[1756872437391,5.30889388,210.19,210.1,7.74]
[1756872437591,5.30889388,210.21,210.15,7.74]
[1756872437791,12.75889388,210.21,210.17,7.74]
[1756872437988,12.75889388,210.21,210.18,4.35255553]
[1756872438189,12.75889388,210.21,210.17,7.74]
[1756872438388,5.30889388,210.22,210.19,7.74]
[1756872438690,293.3,210.27,210.2,7.07100374]
[1756872438691,5.30889388,210.27,210.2,7.07100374]